[Event "Late-Titled-Tuesday-Blitz-May-28-2024"]
[Site "Chess.com"]
[Date "2024.05.28"]
[Round "2"]
[White "FairChess_on_YouTube"]
[Black "sofaceindisguise"]
[Result "1-0"]
[WhiteElo "3080"]
[BlackElo "2628"]
[TimeControl "180+1"]
[EndTime "14:14:27 PDT"]
[Termination "FairChess_on_YouTube won by resignation"]

1. d4 {[%clk 0:03:00.9]} 1... Nf6 {[%clk 0:02:59.7]} 2. c4 {[%clk 0:03:01.3]}
2... g6 {[%clk 0:02:59.8]} 3. Nc3 {[%clk 0:03:01.3]} 3... Bg7 {[%clk 0:03:00.5]}
4. e4 {[%clk 0:03:01.2]} 4... d6 {[%clk 0:03:01]} 5. h3 {[%clk 0:03:01.6]} 5...
O-O {[%clk 0:03:01.6]} 6. Be3 {[%clk 0:03:02]} 6... a5 {[%clk 0:02:58.8]} 7. Nf3
{[%clk 0:03:01.4]} 7... Na6 {[%clk 0:02:59.3]} 8. Be2 {[%clk 0:03:00.2]} 8...
Qe8 {[%clk 0:02:59.8]} 9. Nd2 {[%clk 0:02:57.8]} 9... c6 {[%clk 0:02:57.6]} 10.
g4 {[%clk 0:02:57]} 10... Nd7 {[%clk 0:02:55.8]} 11. h4 {[%clk 0:02:56.2]} 11...
e5 {[%clk 0:02:51.3]} 12. d5 {[%clk 0:02:55.3]} 12... Ndc5 {[%clk 0:02:44.8]}
13. h5 {[%clk 0:02:55]} 13... Bd7 {[%clk 0:02:44.4]} 14. Nb3 {[%clk 0:02:51]}
14... a4 {[%clk 0:02:41.4]} 15. Nxc5 {[%clk 0:02:50.8]} 15... Nxc5 {[%clk
0:02:41.9]} 16. Qd2 {[%clk 0:02:48.4]} 16... b5 {[%clk 0:02:28.5]} 17. Bxc5
{[%clk 0:02:41.6]} 17... dxc5 {[%clk 0:02:28]} 18. dxc6 {[%clk 0:02:42.2]} 18...
Bxc6 {[%clk 0:02:25]} 19. cxb5 {[%clk 0:02:42.8]} 19... Rd8 {[%clk 0:02:24.1]}
20. Qe3 {[%clk 0:02:39.6]} 20... Bb7 {[%clk 0:02:22.8]} 21. Qxc5 {[%clk
0:02:37.5]} 21... Rd4 {[%clk 0:02:21.7]} 22. Qb6 {[%clk 0:02:31.4]} 22... Qa8
{[%clk 0:02:19.9]} 23. h6 {[%clk 0:02:27.7]} 23... Bh8 {[%clk 0:02:18.2]} 24. f3
{[%clk 0:02:26.2]} 24... Rb8 {[%clk 0:02:10.6]} 25. Qc7 {[%clk 0:02:16.7]} 25...
Bf6 {[%clk 0:02:08.7]} 26. Bc4 {[%clk 0:02:15.3]} 26... Kh8 {[%clk 0:01:57.2]}
27. g5 {[%clk 0:02:11.1]} 27... Rxc4 {[%clk 0:01:46]} 28. Qxc4 {[%clk 0:02:12]}
1-0

[Event "Late-Titled-Tuesday-Blitz-May-28-2024"]
[Site "Chess.com"]
[Date "2024.05.28"]
[Round "2"]
[White "YurasovMat-2012"]
[Black "kleinebeer98"]
[Result "0-1"]
[WhiteElo "2585"]
[BlackElo "2966"]
[TimeControl "180+1"]
[EndTime "14:14:40 PDT"]
[Termination "kleinebeer98 won by resignation"]

1. e4 {[%clk 0:03:00.9]} 1... e5 {[%clk 0:02:59.9]} 2. Nf3 {[%clk 0:02:59.8]}
2... Nc6 {[%clk 0:02:59.7]} 3. Bc4 {[%clk 0:02:59.5]} 3... Nf6 {[%clk
0:02:59.1]} 4. d3 {[%clk 0:02:59.5]} 4... h6 {[%clk 0:02:58.7]} 5. c3 {[%clk
0:02:56.9]} 5... d6 {[%clk 0:02:57.9]} 6. h3 {[%clk 0:02:56.2]} 6... g5 {[%clk
0:02:57.5]} 7. Nbd2 {[%clk 0:02:52.2]} 7... Bg7 {[%clk 0:02:52.6]} 8. Nf1 {[%clk
0:02:51.9]} 8... Ne7 {[%clk 0:02:53]} 9. Ng3 {[%clk 0:02:47.1]} 9... c6 {[%clk
0:02:52]} 10. Be3 {[%clk 0:02:42.2]} 10... d5 {[%clk 0:02:48.1]} 11. Bb3 {[%clk
0:02:26.8]} 11... Ng6 {[%clk 0:02:47.8]} 12. Qe2 {[%clk 0:02:14.4]} 12... Nf4
{[%clk 0:02:44.4]} 13. Bxf4 {[%clk 0:02:13.2]} 13... exf4 {[%clk 0:02:45.3]} 14.
Nf5 {[%clk 0:02:00.1]} 14... Bxf5 {[%clk 0:02:45.9]} 15. exf5+ {[%clk 0:02:00]}
15... Qe7 {[%clk 0:02:46.6]} 16. Ne5 {[%clk 0:01:57.7]} 16... O-O-O {[%clk
0:02:41.8]} 17. O-O {[%clk 0:01:54.1]} 17... h5 {[%clk 0:02:38.6]} 18. Rfe1
{[%clk 0:01:52.3]} 18... g4 {[%clk 0:02:37.6]} 19. hxg4 {[%clk 0:01:39.7]} 19...
hxg4 {[%clk 0:02:36.7]} 20. Qd2 {[%clk 0:01:39]} 20... Ne4 {[%clk 0:02:24.4]}
21. dxe4 {[%clk 0:01:35.2]} 21... Bxe5 {[%clk 0:02:18.7]} 22. exd5 {[%clk
0:01:05.7]} 22... Qh4 {[%clk 0:02:18.6]} 23. Kf1 {[%clk 0:01:05.7]} 23... f3
{[%clk 0:02:19.1]} 0-1

[Event "Late-Titled-Tuesday-Blitz-May-28-2024"]
[Site "Chess.com"]
[Date "2024.05.28"]
[Round "2"]
[White "MarcoRiehle"]
[Black "HajiyevKanan"]
[Result "1-0"]
[WhiteElo "2784"]
[BlackElo "2478"]
[TimeControl "180+1"]
[EndTime "14:14:40 PDT"]
[Termination "MarcoRiehle won by resignation"]

1. e4 {[%clk 0:03:00.9]} 1... c6 {[%clk 0:03:00.5]} 2. c4 {[%clk 0:02:59.7]}
2... d5 {[%clk 0:03:01.4]} 3. cxd5 {[%clk 0:03:00.5]} 3... cxd5 {[%clk
0:03:02.3]} 4. exd5 {[%clk 0:03:01]} 4... Nf6 {[%clk 0:03:02.9]} 5. Nc3 {[%clk
0:03:01.4]} 5... Nxd5 {[%clk 0:03:03]} 6. Nf3 {[%clk 0:03:01.9]} 6... e6 {[%clk
0:03:03.4]} 7. d4 {[%clk 0:03:01.3]} 7... Nc6 {[%clk 0:03:03.9]} 8. Bd3 {[%clk
0:03:00.9]} 8... Be7 {[%clk 0:03:04.5]} 9. O-O {[%clk 0:03:00.8]} 9... O-O
{[%clk 0:03:04.9]} 10. Bd2 {[%clk 0:03:00.3]} 10... b6 {[%clk 0:02:58.4]} 11.
Re1 {[%clk 0:02:58.6]} 11... Bb7 {[%clk 0:02:58.6]} 12. Rc1 {[%clk 0:02:58.4]}
12... Nf6 {[%clk 0:02:56]} 13. Bg5 {[%clk 0:02:57.2]} 13... h6 {[%clk 0:02:54]}
14. Bh4 {[%clk 0:02:56.7]} 14... Nd5 {[%clk 0:02:47.4]} 15. Nxd5 {[%clk
0:02:54.4]} 15... Bxh4 {[%clk 0:02:46]} 16. Nxh4 {[%clk 0:02:54.1]} 16... Qxd5
{[%clk 0:02:41]} 17. Be4 {[%clk 0:02:52.3]} 17... Qd7 {[%clk 0:02:40.8]} 18. Nf3
{[%clk 0:02:52]} 18... Rfd8 {[%clk 0:02:40.7]} 19. Bxc6 {[%clk 0:02:50.6]} 19...
Bxc6 {[%clk 0:02:30.3]} 20. Ne5 {[%clk 0:02:46.9]} 20... Ba4 {[%clk 0:02:10.8]}
21. b3 {[%clk 0:02:45]} 21... Qxd4 {[%clk 0:02:01.8]} 22. bxa4 {[%clk
0:02:43.9]} 22... Qb2 {[%clk 0:01:42.3]} 23. Qf3 {[%clk 0:02:37.5]} 23... f6
{[%clk 0:01:25.6]} 24. Nc6 {[%clk 0:02:35.6]} 24... Re8 {[%clk 0:01:26.2]} 25.
Qb3 {[%clk 0:02:32.2]} 25... Qd2 {[%clk 0:01:20]} 26. Rxe6 {[%clk 0:02:22.3]}
26... Qxc1+ {[%clk 0:01:19]} 27. Re1+ {[%clk 0:02:21.9]} 27... Qc4 {[%clk
0:01:10.8]} 28. Qxc4+ {[%clk 0:02:20.6]} 1-0

[Event "Late-Titled-Tuesday-Blitz-May-28-2024"]
[Site "Chess.com"]
[Date "2024.05.28"]
[Round "2"]
[White "Bryanl106"]
[Black "rhwr"]
[Result "1-0"]
[WhiteElo "2674"]
[BlackElo "2344"]
[TimeControl "180+1"]
[EndTime "14:14:45 PDT"]
[Termination "Bryanl106 won by resignation"]

1. e4 {[%clk 0:03:00.9]} 1... Nf6 {[%clk 0:02:58.3]} 2. e5 {[%clk 0:03:00.9]}
2... Nd5 {[%clk 0:02:58.4]} 3. c4 {[%clk 0:03:00.7]} 3... Nb6 {[%clk 0:02:58.4]}
4. d4 {[%clk 0:02:59.9]} 4... d6 {[%clk 0:02:58.7]} 5. exd6 {[%clk 0:02:59.8]}
5... exd6 {[%clk 0:02:58.3]} 6. Nc3 {[%clk 0:02:59.4]} 6... Be7 {[%clk
0:02:58.3]} 7. Bd3 {[%clk 0:02:59.4]} 7... Bf6 {[%clk 0:02:52.5]} 8. Nge2 {[%clk
0:02:58.8]} 8... Bg4 {[%clk 0:02:49.4]} 9. h3 {[%clk 0:02:58.3]} 9... Bh5 {[%clk
0:02:49.2]} 10. g4 {[%clk 0:02:57.8]} 10... Bg6 {[%clk 0:02:49.2]} 11. h4 {[%clk
0:02:42.2]} 11... Bxh4 {[%clk 0:02:45.2]} 12. Be3 {[%clk 0:02:36.3]} 12... Nc6
{[%clk 0:02:33.4]} 13. Nf4 {[%clk 0:02:34.2]} 13... Bf6 {[%clk 0:02:27.5]} 14.
Nxg6 {[%clk 0:02:31.4]} 14... fxg6 {[%clk 0:02:25]} 15. Bxg6+ {[%clk 0:02:30.8]}
15... Kf8 {[%clk 0:02:25.2]} 16. Bd3 {[%clk 0:02:30.1]} 16... Qe7 {[%clk
0:02:16.1]} 17. Be2 {[%clk 0:02:24]} 17... Re8 {[%clk 0:02:06.5]} 18. Qd2 {[%clk
0:02:20.8]} 18... Qf7 {[%clk 0:01:54.8]} 19. b3 {[%clk 0:02:16.9]} 19... d5
{[%clk 0:01:47.4]} 20. c5 {[%clk 0:02:13.6]} 20... Nd7 {[%clk 0:01:45.3]} 21. g5
{[%clk 0:02:13.7]} 21... Bd8 {[%clk 0:01:41.1]} 22. g6 {[%clk 0:02:12.6]} 22...
Qxg6 {[%clk 0:01:33.4]} 23. Bh5 {[%clk 0:02:10.6]} 23... Qg2 {[%clk 0:01:33.1]}
24. O-O-O {[%clk 0:02:10.4]} 24... Re6 {[%clk 0:01:30.3]} 25. Rdg1 {[%clk
0:02:08]} 1-0

[Event "Late-Titled-Tuesday-Blitz-May-28-2024"]
[Site "Chess.com"]
[Date "2024.05.28"]
[Round "2"]
[White "Jahonas"]
[Black "ReadySkate"]
[Result "0-1"]
[WhiteElo "2423"]
[BlackElo "2716"]
[TimeControl "180+1"]
[EndTime "14:15:02 PDT"]
[Termination "ReadySkate won by resignation"]

1. d4 {[%clk 0:03:00.9]} 1... Nf6 {[%clk 0:02:58.8]} 2. c3 {[%clk 0:03:01]} 2...
g6 {[%clk 0:02:59.1]} 3. Bf4 {[%clk 0:03:00.9]} 3... Bg7 {[%clk 0:02:59.4]} 4.
e3 {[%clk 0:03:01.3]} 4... O-O {[%clk 0:02:59.8]} 5. Nd2 {[%clk 0:03:00.6]} 5...
c5 {[%clk 0:03:00.4]} 6. Ngf3 {[%clk 0:03:00.7]} 6... cxd4 {[%clk 0:03:00.4]} 7.
cxd4 {[%clk 0:02:59.1]} 7... d6 {[%clk 0:03:00.8]} 8. Be2 {[%clk 0:02:58.7]}
8... Nc6 {[%clk 0:03:00.9]} 9. h3 {[%clk 0:02:58.6]} 9... Nd5 {[%clk 0:03:00.9]}
10. Bh2 {[%clk 0:02:58.1]} 10... e5 {[%clk 0:03:01.2]} 11. dxe5 {[%clk
0:02:55.7]} 11... dxe5 {[%clk 0:03:02.1]} 12. O-O {[%clk 0:02:54.6]} 12... f6
{[%clk 0:03:01.9]} 13. Nc4 {[%clk 0:02:52.4]} 13... Be6 {[%clk 0:03:01.4]} 14.
e4 {[%clk 0:02:23.7]} 14... Nf4 {[%clk 0:02:59.8]} 15. Bxf4 {[%clk 0:02:22.3]}
15... exf4 {[%clk 0:03:00.7]} 16. Nd6 {[%clk 0:02:19.9]} 16... Qe7 {[%clk
0:02:58.3]} 17. Nc4 {[%clk 0:01:42.7]} 17... Rad8 {[%clk 0:02:56]} 18. Qc1
{[%clk 0:01:41.7]} 18... f5 {[%clk 0:02:41.3]} 19. Qxf4 {[%clk 0:01:22.5]} 19...
Nd4 {[%clk 0:02:39.2]} 20. Nxd4 {[%clk 0:01:18.7]} 20... Rxd4 {[%clk 0:02:40.1]}
21. Rfd1 {[%clk 0:00:46.6]} 21... Rxe4 {[%clk 0:02:35.6]} 22. Qd6 {[%clk
0:00:45.5]} 22... Qxd6 {[%clk 0:02:33.6]} 23. Nxd6 {[%clk 0:00:39.8]} 23... Rxe2
{[%clk 0:02:33.2]} 24. Nxb7 {[%clk 0:00:38.4]} 24... Rxb2 {[%clk 0:02:33.2]} 25.
Nc5 {[%clk 0:00:37.4]} 25... Bxa2 {[%clk 0:02:32.1]} 0-1

[Event "Late-Titled-Tuesday-Blitz-May-28-2024"]
[Site "Chess.com"]
[Date "2024.05.28"]
[Round "2"]
[White "BogdanDeac"]
[Black "Robert_Oros"]
[Result "1-0"]
[WhiteElo "3087"]
[BlackElo "2431"]
[TimeControl "180+1"]
[EndTime "14:15:07 PDT"]
[Termination "BogdanDeac won by checkmate"]

1. d4 {[%clk 0:03:00.9]} 1... e6 {[%clk 0:02:59.4]} 2. Nf3 {[%clk 0:03:00.6]}
2... f5 {[%clk 0:02:59.4]} 3. Bg5 {[%clk 0:02:58.9]} 3... Nf6 {[%clk 0:02:55.8]}
4. Nbd2 {[%clk 0:02:58.4]} 4... Be7 {[%clk 0:02:55.2]} 5. Bxf6 {[%clk
0:02:58.6]} 5... Bxf6 {[%clk 0:02:54.8]} 6. e4 {[%clk 0:02:59.1]} 6... fxe4
{[%clk 0:02:54.2]} 7. Nxe4 {[%clk 0:02:58.9]} 7... b6 {[%clk 0:02:48.9]} 8. Bd3
{[%clk 0:02:58]} 8... Bb7 {[%clk 0:02:49.4]} 9. Qe2 {[%clk 0:02:57.7]} 9... Nc6
{[%clk 0:02:42.2]} 10. c3 {[%clk 0:02:56.2]} 10... O-O {[%clk 0:02:38.4]} 11. h4
{[%clk 0:02:54.3]} 11... Be7 {[%clk 0:02:28.4]} 12. Neg5 {[%clk 0:02:49.3]}
12... h6 {[%clk 0:02:11.1]} 13. Bh7+ {[%clk 0:02:41.8]} 13... Kh8 {[%clk
0:02:10.5]} 14. Bc2 {[%clk 0:02:42.4]} 14... Kg8 {[%clk 0:00:49.9]} 15. O-O-O
{[%clk 0:02:35.5]} 15... Rf4 {[%clk 0:00:38.9]} 16. Qd3 {[%clk 0:02:30.4]} 16...
hxg5 {[%clk 0:00:33.7]} 17. Qh7+ {[%clk 0:02:28.9]} 17... Kf7 {[%clk 0:00:33.1]}
18. Bg6+ {[%clk 0:02:26.3]} 18... Kf8 {[%clk 0:00:23.8]} 19. Qh8# {[%clk
0:02:19.3]} 1-0

[Event "Late-Titled-Tuesday-Blitz-May-28-2024"]
[Site "Chess.com"]
[Date "2024.05.28"]
[Round "2"]
[White "WilsonPalencia21"]
[Black "KanalSzachowy"]
[Result "1-0"]
[WhiteElo "2601"]
[BlackElo "2377"]
[TimeControl "180+1"]
[EndTime "14:15:15 PDT"]
[Termination "WilsonPalencia21 won by resignation"]

1. d4 {[%clk 0:03:00.2]} 1... Nf6 {[%clk 0:03:00]} 2. c4 {[%clk 0:02:59.9]} 2...
e6 {[%clk 0:03:00]} 3. Nf3 {[%clk 0:02:59.1]} 3... Bb4+ {[%clk 0:03:00.1]} 4.
Nbd2 {[%clk 0:02:57.8]} 4... b6 {[%clk 0:02:58.7]} 5. a3 {[%clk 0:02:51.9]} 5...
Bxd2+ {[%clk 0:02:58.5]} 6. Qxd2 {[%clk 0:02:52.8]} 6... Bb7 {[%clk 0:02:59]} 7.
e3 {[%clk 0:02:53.4]} 7... O-O {[%clk 0:02:59.1]} 8. b4 {[%clk 0:02:53.8]} 8...
d5 {[%clk 0:02:57.9]} 9. Bb2 {[%clk 0:02:53.6]} 9... dxc4 {[%clk 0:02:57.5]} 10.
Bxc4 {[%clk 0:02:53.2]} 10... Nbd7 {[%clk 0:02:56.2]} 11. O-O {[%clk 0:02:35.6]}
11... Ne4 {[%clk 0:02:55.6]} 12. Qc2 {[%clk 0:02:34.7]} 12... Ndf6 {[%clk
0:02:49.5]} 13. Ne5 {[%clk 0:02:31.8]} 13... Rc8 {[%clk 0:02:48.4]} 14. Rfd1
{[%clk 0:02:30.3]} 14... Qe7 {[%clk 0:02:46]} 15. Bd3 {[%clk 0:02:23.2]} 15...
c5 {[%clk 0:02:43]} 16. dxc5 {[%clk 0:02:22.9]} 16... bxc5 {[%clk 0:02:43.1]}
17. b5 {[%clk 0:02:23.5]} 17... c4 {[%clk 0:02:36.2]} 18. Bxc4 {[%clk
0:02:18.4]} 18... Bd5 {[%clk 0:02:30.6]} 19. Qe2 {[%clk 0:01:57.5]} 19... Bxc4
{[%clk 0:02:20.5]} 20. Nxc4 {[%clk 0:01:57.3]} 20... Qc5 {[%clk 0:02:21.1]} 21.
Ne5 {[%clk 0:01:37.5]} 21... Qc2 {[%clk 0:02:13.9]} 22. Qxc2 {[%clk 0:01:23.3]}
22... Rxc2 {[%clk 0:02:13.7]} 23. Bd4 {[%clk 0:01:23.1]} 23... Nxf2 {[%clk
0:02:02.7]} 24. Rdc1 {[%clk 0:01:20]} 24... Rfc8 {[%clk 0:01:54.8]} 25. Nc6
{[%clk 0:01:18.4]} 25... Rxc1+ {[%clk 0:01:51.4]} 26. Rxc1 {[%clk 0:01:18]} 1-0

[Event "Late-Titled-Tuesday-Blitz-May-28-2024"]
[Site "Chess.com"]
[Date "2024.05.28"]
[Round "2"]
[White "cristianserban1"]
[Black "whatupy0dog"]
[Result "1-0"]
[WhiteElo "2526"]
[BlackElo "2278"]
[TimeControl "180+1"]
[EndTime "14:15:17 PDT"]
[Termination "cristianserban1 won by checkmate"]

1. Nf3 {[%clk 0:03:00.9]} 1... Nf6 {[%clk 0:02:59.2]} 2. b3 {[%clk 0:03:00.9]}
2... d5 {[%clk 0:02:57.5]} 3. Bb2 {[%clk 0:03:00.1]} 3... c5 {[%clk 0:02:57.8]}
4. e3 {[%clk 0:03:00]} 4... Nc6 {[%clk 0:02:56.5]} 5. Bb5 {[%clk 0:03:00.3]}
5... Bd7 {[%clk 0:02:54.7]} 6. O-O {[%clk 0:03:00.1]} 6... g6 {[%clk 0:02:52.4]}
7. c4 {[%clk 0:02:54.9]} 7... Bg7 {[%clk 0:02:51.9]} 8. cxd5 {[%clk 0:02:53.7]}
8... Nb8 {[%clk 0:02:48.1]} 9. Bxd7+ {[%clk 0:02:49.4]} 9... Nbxd7 {[%clk
0:02:47.4]} 10. e4 {[%clk 0:02:48.6]} 10... O-O {[%clk 0:02:47.2]} 11. d3 {[%clk
0:02:48.1]} 11... Qc7 {[%clk 0:02:43.8]} 12. Nbd2 {[%clk 0:02:45.6]} 12... Ng4
{[%clk 0:02:41.9]} 13. Bxg7 {[%clk 0:02:44.7]} 13... Kxg7 {[%clk 0:02:42.5]} 14.
Rc1 {[%clk 0:02:42.1]} 14... b6 {[%clk 0:02:41.8]} 15. h3 {[%clk 0:02:36.9]}
15... Nge5 {[%clk 0:02:41.7]} 16. d4 {[%clk 0:02:37.4]} 16... Nxf3+ {[%clk
0:02:41.1]} 17. Nxf3 {[%clk 0:02:38.3]} 17... Qd6 {[%clk 0:02:41]} 18. dxc5
{[%clk 0:02:37.2]} 18... Nxc5 {[%clk 0:02:40.2]} 19. Qd4+ {[%clk 0:02:36]} 19...
e5 {[%clk 0:02:37.8]} 20. Nxe5 {[%clk 0:02:25.7]} 20... Qf6 {[%clk 0:02:36.5]}
21. f4 {[%clk 0:02:00.5]} 21... Rfe8 {[%clk 0:02:33.2]} 22. Rcd1 {[%clk
0:01:46.8]} 22... Rad8 {[%clk 0:02:31.9]} 23. b4 {[%clk 0:01:44.2]} 23... Ne6
{[%clk 0:02:31.1]} 24. Qe3 {[%clk 0:01:31.7]} 24... Nxf4 {[%clk 0:02:28.6]} 25.
Ng4 {[%clk 0:01:31.8]} 25... Nxg2 {[%clk 0:02:20.5]} 26. Kxg2 {[%clk 0:01:17.8]}
26... Qd6 {[%clk 0:02:16.6]} 27. Qd4+ {[%clk 0:01:12.9]} 27... Kf8 {[%clk
0:02:08.5]} 28. Qh8+ {[%clk 0:00:59.5]} 28... Ke7 {[%clk 0:02:08.3]} 29. Rxf7+
{[%clk 0:01:00.4]} 29... Kxf7 {[%clk 0:02:08.6]} 30. Rf1+ {[%clk 0:01:01.3]}
30... Ke7 {[%clk 0:02:08.7]} 31. Qg7# {[%clk 0:01:00.9]} 1-0

[Event "Late-Titled-Tuesday-Blitz-May-28-2024"]
[Site "Chess.com"]
[Date "2024.05.28"]
[Round "2"]
[White "JacksterThePro"]
[Black "oogee"]
[Result "1-0"]
[WhiteElo "2556"]
[BlackElo "2352"]
[TimeControl "180+1"]
[EndTime "14:15:18 PDT"]
[Termination "JacksterThePro won by resignation"]

1. d4 {[%clk 0:03:00.9]} 1... Nf6 {[%clk 0:02:59.4]} 2. Bg5 {[%clk 0:02:58.7]}
2... Ne4 {[%clk 0:02:58.5]} 3. Bh4 {[%clk 0:02:49.8]} 3... g5 {[%clk 0:02:58.2]}
4. Bg3 {[%clk 0:02:49.6]} 4... Bg7 {[%clk 0:02:57.3]} 5. e3 {[%clk 0:02:43.6]}
5... d6 {[%clk 0:02:54.5]} 6. Nd2 {[%clk 0:02:42.1]} 6... Nxg3 {[%clk
0:02:54.3]} 7. hxg3 {[%clk 0:02:38.1]} 7... Nd7 {[%clk 0:02:53.1]} 8. Bd3 {[%clk
0:02:33.8]} 8... Nf6 {[%clk 0:02:46.5]} 9. Ngf3 {[%clk 0:02:19.7]} 9... Bg4
{[%clk 0:02:43.7]} 10. c3 {[%clk 0:02:16.3]} 10... c6 {[%clk 0:02:32.9]} 11. Qb3
{[%clk 0:02:13]} 11... h6 {[%clk 0:02:12.1]} 12. Qxb7 {[%clk 0:01:34.6]} 12...
Rb8 {[%clk 0:02:11.9]} 13. Qxc6+ {[%clk 0:01:31.3]} 13... Bd7 {[%clk 0:02:11]}
14. Qa6 {[%clk 0:01:30.1]} 14... Rxb2 {[%clk 0:02:10.2]} 15. Rb1 {[%clk
0:01:04.3]} 15... Qb8 {[%clk 0:02:03.7]} 16. O-O {[%clk 0:01:00.9]} 16... O-O
{[%clk 0:02:00.2]} 17. Nc4 {[%clk 0:00:49.7]} 17... Rb7 {[%clk 0:01:42.6]} 18.
Rxb7 {[%clk 0:00:46.4]} 1-0

[Event "Late-Titled-Tuesday-Blitz-May-28-2024"]
[Site "Chess.com"]
[Date "2024.05.28"]
[Round "2"]
[White "shirovin"]
[Black "lcmil"]
[Result "1-0"]
[WhiteElo "2100"]
[BlackElo "2442"]
[TimeControl "180+1"]
[EndTime "14:15:22 PDT"]
[Termination "shirovin won by resignation"]

1. e4 {[%clk 0:03:00.9]} 1... c5 {[%clk 0:03:00.3]} 2. Nf3 {[%clk 0:02:58.7]}
2... d6 {[%clk 0:03:00.9]} 3. d4 {[%clk 0:02:58.4]} 3... cxd4 {[%clk 0:03:01.8]}
4. Nxd4 {[%clk 0:02:58.3]} 4... Nf6 {[%clk 0:03:02.4]} 5. Nc3 {[%clk 0:02:58.2]}
5... g6 {[%clk 0:03:03.1]} 6. Be3 {[%clk 0:02:56.9]} 6... Bg7 {[%clk 0:03:03.7]}
7. f3 {[%clk 0:02:57.3]} 7... O-O {[%clk 0:03:04.3]} 8. Qd2 {[%clk 0:02:48.9]}
8... Nc6 {[%clk 0:03:04.6]} 9. Bc4 {[%clk 0:02:49]} 9... Bd7 {[%clk 0:03:04.5]}
10. O-O-O {[%clk 0:02:48]} 10... Ne5 {[%clk 0:03:04.9]} 11. Bb3 {[%clk
0:02:46.4]} 11... Rc8 {[%clk 0:03:05.1]} 12. h4 {[%clk 0:02:46.3]} 12... h5
{[%clk 0:03:04.8]} 13. Bg5 {[%clk 0:02:41.9]} 13... Rc5 {[%clk 0:03:04]} 14. Kb1
{[%clk 0:02:42.5]} 14... b5 {[%clk 0:03:01.2]} 15. g4 {[%clk 0:02:42.1]} 15...
a5 {[%clk 0:02:54.7]} 16. gxh5 {[%clk 0:02:25.7]} 16... a4 {[%clk 0:02:46.2]}
17. Bd5 {[%clk 0:02:23.5]} 17... e6 {[%clk 0:02:38.3]} 18. hxg6 {[%clk
0:02:16.8]} 18... fxg6 {[%clk 0:02:16.8]} 19. Rdg1 {[%clk 0:01:55.9]} 19... exd5
{[%clk 0:02:13.1]} 20. Nxd5 {[%clk 0:01:54.7]} 20... Nc4 {[%clk 0:02:01]} 21.
Qg2 {[%clk 0:01:44.7]} 21... Rxd5 {[%clk 0:01:46.4]} 22. exd5 {[%clk 0:01:37.8]}
22... Qb6 {[%clk 0:01:42.3]} 23. Ne6 {[%clk 0:01:24.5]} 23... Bxe6 {[%clk
0:01:39.6]} 24. dxe6 {[%clk 0:01:22.3]} 24... Qa5 {[%clk 0:01:32.7]} 25. e7
{[%clk 0:01:18.2]} 1-0

[Event "Late-Titled-Tuesday-Blitz-May-28-2024"]
[Site "Chess.com"]
[Date "2024.05.28"]
[Round "2"]
[White "rikchessmx"]
[Black "yobdc"]
[Result "0-1"]
[WhiteElo "2318"]
[BlackElo "2534"]
[TimeControl "180+1"]
[EndTime "14:15:26 PDT"]
[Termination "yobdc won by checkmate"]

1. e4 {[%clk 0:03:00.9]} 1... c5 {[%clk 0:03:00]} 2. Nf3 {[%clk 0:03:00.9]} 2...
Nf6 {[%clk 0:03:00.4]} 3. d4 {[%clk 0:03:01.4]} 3... cxd4 {[%clk 0:02:59.5]} 4.
e5 {[%clk 0:03:00.8]} 4... Nd5 {[%clk 0:02:57]} 5. Qxd4 {[%clk 0:03:00.1]} 5...
e6 {[%clk 0:02:57.2]} 6. Nbd2 {[%clk 0:02:58.1]} 6... Nc6 {[%clk 0:02:57.2]} 7.
Qe4 {[%clk 0:02:54.5]} 7... f5 {[%clk 0:02:56.4]} 8. exf6 {[%clk 0:02:52.7]}
8... Nxf6 {[%clk 0:02:56.1]} 9. Qa4 {[%clk 0:02:50]} 9... Be7 {[%clk 0:02:46.7]}
10. Bd3 {[%clk 0:02:49.6]} 10... O-O {[%clk 0:02:46.7]} 11. O-O {[%clk
0:02:49.1]} 11... b6 {[%clk 0:02:46.9]} 12. Ne4 {[%clk 0:02:44.5]} 12... Nb4
{[%clk 0:01:59.6]} 13. Nxf6+ {[%clk 0:02:34.4]} 13... Rxf6 {[%clk 0:01:55.5]}
14. Bg5 {[%clk 0:02:33.4]} 14... Rxf3 {[%clk 0:01:54.1]} 15. Bxe7 {[%clk
0:02:28.4]} 15... Qxe7 {[%clk 0:01:55]} 16. gxf3 {[%clk 0:02:28.3]} 16... Nxd3
{[%clk 0:01:50.7]} 17. cxd3 {[%clk 0:02:28]} 17... Bb7 {[%clk 0:01:50.4]} 18.
Qg4 {[%clk 0:02:25.4]} 18... Rf8 {[%clk 0:01:49]} 19. f4 {[%clk 0:02:24.9]}
19... Rf6 {[%clk 0:01:46.3]} 20. Rac1 {[%clk 0:02:09.6]} 20... Rg6 {[%clk
0:01:43.5]} 21. Qg3 {[%clk 0:02:08]} 21... Qd6 {[%clk 0:01:37.9]} 22. Rc3 {[%clk
0:01:59.4]} 22... Qxf4 {[%clk 0:01:25.8]} 23. d4 {[%clk 0:01:56.1]} 23... Qe4
{[%clk 0:01:18.5]} 24. f3 {[%clk 0:01:55.9]} 24... Qxd4+ {[%clk 0:01:17.4]} 25.
Kh1 {[%clk 0:01:54.1]} 25... Rxg3 {[%clk 0:01:17.5]} 26. hxg3 {[%clk 0:01:55]}
26... Qd2 {[%clk 0:01:13.7]} 27. Rc7 {[%clk 0:01:53.7]} 27... Bc6 {[%clk
0:01:14]} 28. b4 {[%clk 0:01:51.1]} 28... Qe2 {[%clk 0:01:08.8]} 29. Kg1 {[%clk
0:01:49.7]} 29... Qe5 {[%clk 0:01:08.3]} 30. Rc8+ {[%clk 0:01:46.5]} 30... Kf7
{[%clk 0:01:08.5]} 31. f4 {[%clk 0:01:46.6]} 31... Qe3+ {[%clk 0:01:07.2]} 32.
Rf2 {[%clk 0:01:46.3]} 32... Qe1+ {[%clk 0:01:07.4]} 33. Rf1 {[%clk 0:01:44.8]}
33... Qxg3# {[%clk 0:01:07.6]} 0-1